bitfinex-derivatives/quotes_ETHF0:USTF0_20260226
["timestamp","ask_amount","ask_price","bid_price","bid_amount"]
[1772083992197,1.57508179,2066.0,2065.2,1.61061337]
[1772083993500,1.57508179,2066.3,2065.3,1.61061337]
[1772083993698,1.57508179,2066.3,2065.4,1.61061337]
[1772083993900,1.57508179,2066.3,2065.6,1.61061337]
[1772083997295,1.5789356,2066.4,2065.6,1.61061337]
[1772083999301,0.00385381,2066.4,2065.6,1.61061337]
[1772084000696,1.57508179,2066.7,2065.7,1.61061337]
[1772084001096,1.57508179,2066.7,2065.8,1.61061337]
[1772084001402,1.57508179,2066.7,2066.0,1.61061337]
[1772084001602,1.5812983,2066.7,2066.0,1.61061337]
[1772084002502,0.00621651,2066.7,2066.0,1.61061337]
[1772084002703,1.57508179,2066.9,2066.1,1.61061337]
[1772084003604,1.57962676,2066.9,2066.1,1.61061337]
[1772084004000,0.00454497,2066.9,2066.1,1.61061337]
[1772084004205,0.00454497,2066.9,2066.1,7.6898715]
[1772084004407,0.00454497,2066.9,2066.2,1.61061337]
[1772084004707,1.57508179,2067.1,2066.4,1.61061337]
[1772084005206,1.57508179,2067.4,2066.4,1.61061337]
[1772084005601,1.57950978,2067.4,2066.4,1.61495125]
[1772084006002,1.57950978,2067.4,2066.6,1.56505286]
[1772084009412,1.57950978,2067.4,2066.4,1.56939074]
[1772084012314,1.6613346,2067.4,2066.4,1.56939074]
[1772084014309,0.00442799,2067.4,2066.4,1.56939074]
[1772084014914,1.58085148,2067.4,2066.4,1.56939074]
[1772084017811,1.58085148,2067.4,2066.4,0.00433788]
[1772084018312,1.58085148,2067.4,2066.4,1.6174437]
[1772084019018,1.57642349,2067.2,2066.4,0.00433788]
[1772084020022,1.57642349,2067.2,2066.0,1.61310582]
[1772084020519,1.57642349,2067.0,2065.6,1.61310582]
[1772084020920,1.57642349,2067.0,2065.7,1.61310582]
[1772084022215,1.57642349,2067.0,2065.8,1.61310582]
[1772084024321,1.57642349,2067.0,2065.9,1.61310582]
[1772084026523,1.57642349,2067.0,2066.0,1.61310582]
[1772084030824,1.57642349,2067.0,2066.1,1.61310582]
[1772084033023,1.57642349,2067.0,2066.2,1.61310582]
[1772084034628,1.57642349,2067.0,2066.0,1.61310582]
[1772084035327,1.57642349,2066.8,2066.0,1.61310582]
[1772084044834,1.57642349,2066.8,2066.1,1.52333582]
[1772084046333,1.57642349,2066.8,2066.2,1.52333582]
[1772084047932,1.68256065,2066.6,2065.9,6.07925813]
[1772084048135,1.68256065,2066.5,2065.9,1.52333582]
[1772084050230,1.68256065,2066.5,2065.8,1.52333582]
[1772084050734,1.68256065,2066.5,2065.7,6.07925813]
[1772084051139,1.68256065,2066.5,2065.7,7.60259395]
[1772084053232,1.180982,2066.4,2065.7,7.60259395]
[1772084053432,1.68256065,2066.3,2065.7,7.60259395]
[1772084054233,1.68256065,2066.1,2065.7,1.52333582]
[1772084056136,1.68256065,2066.1,2065.6,6.08548166]
[1772084056441,1.68256065,2066.1,2065.6,7.60881748]
[1772084056641,1.68256065,2066.1,2065.7,1.52333582]
[1772084059043,1.68256065,2066.3,2065.7,1.52333582]
[1772084066944,1.68256065,2066.3,2065.6,0.00622353]
[1772084067938,1.69705137,2066.0,2065.2,6.07925813]
[1772084068136,1.69705137,2065.8,2065.1,6.07925813]
[1772084068330,1.69705137,2065.8,2065.1,1.58709882]
[1772084068735,7.434,2065.9,2065.2,1.58709882]
[1772084068936,9.13722548,2065.9,2065.2,1.59105636]
[1772084071647,1.69705137,2065.8,2065.2,1.59105636]
[1772084077950,1.69705137,2065.8,2065.2,0.00395754]
[1772084078647,1.69705137,2065.8,2065.2,1.5976972]
[1772084079449,1.69705137,2065.8,2065.2,0.00395754]
[1772084079849,1.55960627,2065.6,2065.2,0.00395754]
[1772084083461,1.55960627,2065.6,2064.9,1.59373966]
[1772084084361,1.55960627,2065.6,2064.9,1.59847071]
[1772084085264,1.55960627,2065.4,2064.9,0.00473105]
[1772084085560,1.55960627,2065.4,2064.9,1.59847071]
[1772084091560,1.55960627,2065.7,2065.2,1.59373966]
[1772084093165,0.00617411,2065.9,2064.9,1.59847071]
[1772084093166,1.55960627,2065.6,2064.9,1.59847071]
[1772084093469,1.55960627,2065.8,2065.1,1.59373966]
[1772084098073,1.56392531,2065.7,2064.9,1.63610989]
[1772084098474,1.56392531,2065.7,2065.1,1.63137884]
[1772084098769,1.56392531,2065.5,2064.9,1.63610989]
[1772084098969,1.56392531,2065.3,2064.9,1.63610989]
[1772084100168,1.56392531,2065.1,2064.6,6.07925813]
[1772084100467,1.56392531,2064.9,2064.5,1.63137884]
[1772084100672,1.56392531,2064.7,2064.2,7.71063697]
[1772084100876,1.56392531,2064.7,2064.1,1.63137884]
[1772084101270,1.56392531,2064.5,2064.1,0.00598503]
[1772084101579,1.56392531,2064.1,2063.6,1.63137884]
[1772084102471,1.56392531,2063.8,2063.2,1.63137884]
[1772084103474,1.56392531,2063.8,2063.2,0.00462648]
[1772084104171,1.56392531,2064.0,2063.2,1.63600532]
[1772084110482,1.56392531,2064.0,2062.9,1.63137884]
[1772084110782,1.56392531,2063.8,2062.9,1.63137884]
[1772084110979,1.56392531,2063.7,2062.9,1.63137884]
[1772084111574,1.56392531,2063.7,2062.9,1.63654626]
[1772084114288,1.56392531,2064.0,2062.9,1.63654626]
[1772084116087,1.56392531,2064.0,2062.9,1.87890626]
[1772084116290,1.56859207,2064.1,2062.9,1.87890626]
[1772084116494,0.00466676,2064.1,2062.9,1.87890626]
[1772084116790,0.00466676,2064.1,2063.2,1.63137884]
[1772084118391,1.56859207,2064.1,2063.2,1.63137884]
[1772084121898,1.56495071,2064.1,2063.2,1.63137884]
[1772084125005,0.0010254,2064.1,2063.2,1.63137884]
[1772084125800,1.56495071,2064.1,2063.2,1.63137884]
[1772084127100,1.66943275,2064.5,2063.4,1.57495116]
[1772084127303,1.66943275,2064.5,2063.6,1.57495116]
[1772084128106,1.6751685,2064.5,2063.6,1.57495116]
[1772084128503,1.6751685,2064.5,2063.7,1.57495116]
[1772084132011,1.6751685,2064.5,2063.6,1.57495116]
[1772084132207,1.6751685,2064.5,2063.5,6.434]
[1772084132411,1.6751685,2064.5,2063.6,1.57495116]
[1772084140910,1.6751685,2064.5,2063.4,6.07925813]
[1772084141115,1.6710011,2064.4,2063.2,1.71726088]
[1772084141414,1.6710011,2064.3,2063.1,1.71726088]
[1772084141714,1.6710011,2064.1,2063.0,8.15426088]
[1772084142111,1.6710011,2063.9,2063.0,8.15426088]
[1772084142716,1.6710011,2063.9,2063.1,1.71726088]
[1772084142916,1.6710011,2063.9,2063.0,6.437]
[1772084143209,1.6710011,2063.9,2062.9,1.7224283]
[1772084144911,1.6710011,2063.9,2062.9,0.00516742]
[1772084146107,1.6710011,2063.7,2062.9,0.00516742]
[1772084148918,1.6710011,2063.7,2062.6,1.71726088]
[1772084149921,1.6710011,2063.7,2062.6,1.72173515]
[1772084157522,1.72110677,2063.3,2062.6,1.72173515]
[1772084160625,1.72110677,2063.5,2062.6,1.72173515]
[1772084161428,1.72110677,2063.6,2062.6,1.72173515]
[1772084161930,7.663,2063.7,2062.6,1.72173515]
[1772084162131,9.38410677,2063.7,2062.6,1.72173515]
[1772084162324,9.38410677,2063.7,2062.6,7.80099328]
[1772084162524,9.38410677,2063.7,2062.7,1.66690673]
[1772084163531,1.72110677,2063.6,2062.7,1.66690673]
[1772084166729,1.72110677,2063.6,2062.6,1.671381]
[1772084166923,1.72110677,2063.6,2062.6,0.00447427]
[1772084169631,1.72110677,2063.4,2062.6,1.671381]
[1772084169827,1.72110677,2063.4,2062.6,0.00447427]
[1772084170135,1.72110677,2063.4,2062.3,13.08412711]
[1772084170432,1.72110677,2063.4,2062.3,14.75103384]
[1772084170734,1.72110677,2063.4,2062.3,1.66690673]
[1772084171034,1.72110677,2063.0,2062.2,6.07925813]
[1772084171227,1.77895518,2062.6,2061.4,6.07925813]
[1772084171426,1.72110677,2062.5,2061.3,1.66690673]
[1772084171628,1.72110677,2062.3,2061.3,1.66690673]
[1772084172232,1.72733753,2062.3,2061.3,1.67145343]
[1772084172533,1.72110677,2062.2,2061.3,1.67145343]
[1772084173234,1.72110677,2063.1,2062.2,1.66690673]
[1772084173433,1.72110677,2063.1,2062.4,1.66690673]
[1772084173735,1.72110677,2063.0,2062.2,1.66690673]
[1772084174138,1.72547629,2063.0,2062.2,1.66690673]
[1772084177334,1.72547629,2063.0,2061.9,1.66690673]
[1772084177735,1.72110677,2062.8,2061.9,1.66690673]
[1772084180240,0.00436952,2063.0,2061.9,3.44586191]
[1772084180441,0.00436952,2063.0,2062.0,1.66690673]
[1772084180736,9.38910677,2063.5,2062.0,1.66690673]
[1772084180938,1.72110677,2063.8,2062.3,1.66690673]
[1772084181239,1.72110677,2063.8,2062.5,1.66690673]
[1772084181840,1.72606791,2063.8,2062.6,1.66690673]
[1772084189447,1.60902036,2063.7,2062.6,1.66690673]
[1772084194755,1.60902036,2063.7,2062.6,7.74616486]
[1772084194952,0.00496114,2063.8,2062.9,1.58425536]
[1772084195247,0.00496114,2063.8,2063.1,1.58425536]
[1772084195453,1.70341914,2064.2,2063.1,1.58425536]
[1772084195850,1.70341914,2064.3,2063.2,1.58425536]
[1772084196056,1.70341914,2064.9,2063.3,1.58425536]
[1772084196249,1.70341914,2064.9,2063.5,1.58425536]
[1772084196554,1.70341914,2064.7,2063.5,1.58425536]
[1772084198750,1.70341914,2064.1,2063.0,1.58425536]
[1772084198950,1.70341914,2064.0,2063.0,1.58425536]
[1772084203462,1.70341914,2063.9,2062.9,1.59004623]
[1772084210469,1.70341914,2063.9,2062.9,0.00579087]
[1772084211061,1.70341914,2063.9,2062.9,1.59004623]
[1772084212872,1.70341914,2063.7,2062.9,0.00579087]
[1772084213071,1.70341914,2063.6,2062.9,0.00579087]
[1772084213366,1.70341914,2063.6,2062.7,1.58425536]
[1772084213773,1.77895518,2063.7,2062.7,1.58425536]
[1772084213774,1.70341914,2063.4,2062.7,1.58425536]
[1772084214275,1.70778997,2063.4,2062.7,1.58916642]
[1772084217676,1.70778997,2063.4,2062.7,0.00491106]
[1772084217982,1.68549808,2063.3,2062.4,1.71497461]
[1772084218876,1.68549808,2063.3,2062.4,1.72027418]
[1772084221476,1.68549808,2063.0,2062.4,9.57e-06]
[1772084221676,1.68549808,2063.0,2061.6,7.59989821]
[1772084221677,1.68549808,2062.8,2061.5,1.71497461]
[1772084222278,1.68549808,2062.7,2061.5,1.71497461]
[1772084222681,1.68549808,2062.7,2061.5,1.72042915]
[1772084224777,1.68549808,2062.1,2061.5,0.00545454]
[1772084224982,1.68549808,2062.0,2061.2,1.71497461]
[1772084226082,1.68549808,2062.0,2061.2,1.72051694]
[1772084228183,1.68549808,2062.0,2061.2,0.00554233]
[1772084229783,1.68549808,2061.8,2060.7,1.71497461]
[1772084230781,1.69052114,2061.8,2060.7,1.71910562]
[1772084231476,3.46445326,2061.4,2060.7,0.00413101]
[1772084231682,1.68549808,2061.0,2059.7,1.71497461]
[1772084231883,1.68549808,2060.7,2059.7,1.71497461]
[1772084232089,1.68549808,2060.6,2059.7,1.71497461]
[1772084232683,1.68549808,2060.6,2059.7,1.71948533]
[1772084233581,1.68549808,2060.6,2059.2,1.71497461]
[1772084233788,50.33293539,2060.7,2059.2,1.71497461]
[1772084233789,1.68549808,2060.4,2059.2,1.71497461]
[1772084234790,1.68549808,2060.1,2058.6,1.71497461]
[1772084234990,1.68549808,2059.9,2058.6,1.71497461]
[1772084235286,9.44549808,2059.8,2058.6,1.71497461]
[1772084235680,1.68549808,2059.7,2058.6,1.71992326]
[1772084236391,7.76477413,2059.8,2058.6,1.71992326]
[1772084237092,0.00477413,2059.8,2058.6,1.71992326]
[1772084237282,1.68549808,2060.3,2058.8,1.71497461]
[1772084237488,1.68549808,2060.3,2058.9,1.71497461]
[1772084238394,1.6906354,2060.3,2058.9,1.71497461]
[1772084240197,0.00513732,2060.3,2059.0,6.87422932]
[1772084240395,0.00513732,2060.3,2059.1,1.71497461]
[1772084240697,1.6906354,2060.3,2059.1,1.71497461]
[1772084242098,0.00513732,2060.3,2059.3,1.71497461]
[1772084243099,7.747,2060.7,2059.3,1.71497461]
[1772084243299,1.68549808,2060.6,2059.3,1.71497461]
[1772084244096,1.68979545,2060.6,2059.3,1.71497461]
[1772084244696,1.68549808,2060.4,2059.3,1.71497461]
[1772084244898,1.68549808,2060.2,2058.7,1.71497461]
[1772084245099,1.68549808,2060.0,2058.7,1.71497461]
[1772084251812,1.68205281,2060.2,2058.9,1.62408826]
[1772084252013,1.68205281,2060.5,2059.1,1.62408826]
[1772084253411,0.00429737,2060.6,2059.1,1.62408826]
[1772084253712,1.74341401,2060.9,2059.7,1.62717574]
[1772084254807,1.7494374,2060.9,2059.7,1.62717574]
[1772084259519,1.74341401,2060.8,2059.7,1.62717574]
[1772084259718,1.74341401,2060.6,2059.7,1.62717574]
[1772084262618,1.74341401,2060.6,2059.5,1.62717574]
[1772084263720,1.74341401,2060.4,2059.5,1.62717574]
[1772084273133,1.74341401,2060.4,2059.3,1.62717574]
[1772084273334,1.74341401,2060.2,2059.3,1.62717574]
[1772084276736,1.59588489,2060.1,2059.3,1.62717574]
[1772084277834,1.59588489,2060.1,2059.2,1.73419265]
[1772084278029,1.59588489,2059.9,2059.0,1.73419265]
[1772084278229,1.59588489,2059.7,2059.0,1.73419265]
[1772084278937,1.59588489,2059.7,2058.7,1.73419265]
[1772084280441,1.59588489,2059.9,2058.9,1.73419265]
[1772084280633,7.765,2060.2,2059.0,1.73419265]
[1772084280634,1.59588489,2060.2,2059.0,1.73419265]
[1772084280839,1.59588489,2060.6,2059.3,1.73419265]
[1772084281035,1.59588489,2060.6,2059.6,1.73419265]
[1772084281234,1.59588489,2060.8,2059.8,1.73419265]
[1772084292645,1.59588489,2060.4,2059.8,1.73419265]
[1772084297647,1.59588489,2060.4,2059.6,1.73419265]
[1772084300347,1.59588489,2060.2,2059.3,1.73419265]
[1772084300549,1.59588489,2059.9,2059.0,1.73419265]
[1772084300847,1.59588489,2059.7,2059.0,1.73419265]
[1772084309953,1.73496986,2060.0,2059.0,1.73419265]
[1772084310346,1.73496986,2060.0,2059.1,1.61374969]
[1772084310656,9.46396986,2060.3,2059.1,1.61374969]
[1772084310855,1.73496986,2060.3,2059.2,1.61374969]
[1772084315656,1.75543031,2060.2,2059.2,1.61374969]
[1772084316457,3.46658535,2060.2,2059.2,1.61374969]
[1772084316659,1.75543031,2060.1,2059.2,1.61374969]
[1772084319254,7.756,2060.3,2059.3,1.59085096]
[1772084319255,1.75543031,2060.3,2059.3,1.59085096]
[1772084319562,1.75543031,2060.6,2059.5,1.59085096]
[1772084319861,1.75543031,2060.6,2059.7,1.59085096]
[1772084320462,1.75543031,2060.8,2059.7,1.59085096]
[1772084320760,1.75543031,2060.8,2059.8,1.59085096]
[1772084324863,1.7614537,2060.9,2059.8,1.59085096]
[1772084329959,1.75543031,2061.8,2060.5,1.59085096]
[1772084330167,1.75543031,2061.8,2060.7,1.59085096]
[1772084331063,1.75986821,2061.8,2060.7,1.59514589]
[1772084332565,1.75543031,2062.0,2061.0,1.59085096]
[1772084332762,1.75543031,2062.0,2061.2,1.59085096]
[1772084333063,1.75543031,2062.0,2061.2,6.398]
[1772084333768,1.75543031,2061.8,2060.9,6.397]
[1772084333965,1.75543031,2061.8,2060.9,7.98785096]
[1772084337567,1.75543031,2061.8,2060.9,1.59085096]
[1772084337971,1.75543031,2061.8,2060.7,1.63459507]
[1772084340764,1.75543031,2061.8,2060.7,0.00429493]
[1772084340969,7.74675386,2061.9,2060.7,0.00429493]
[1772084340970,1.75658375,2061.5,2060.7,0.00429493]
[1772084341868,1.75658375,2061.3,2060.7,0.00429493]
[1772084344773,1.75658375,2061.3,2060.7,1e-08]
[1772084351475,9.61958375,2061.3,2060.7,1e-08]
[1772084351675,1.75658375,2061.2,2060.7,1e-08]
[1772084351871,9.61958375,2061.3,2060.8,1.63030014]
[1772084352076,1.75658375,2061.2,2060.7,1e-08]
[1772084362072,1.75658375,2061.3,2060.7,1e-08]
[1772084368381,1.60863,2061.5,2060.8,1.65274932]
[1772084368783,1.60863,2061.7,2060.9,1.65274932]
[1772084369276,1.60863,2061.8,2060.9,1.65274932]
[1772084369483,1.60863,2061.8,2061.0,1.65274932]
[1772084373884,1.60863,2061.8,2060.9,6.353]
[1772084374079,1.60863,2061.8,2060.9,7.93122084]
[1772084374682,1.60863,2061.8,2061.0,1.57822084]
[1772084391801,1.71539041,2062.0,2061.0,1.57822084]
[1772084392107,1.71539041,2062.0,2061.2,1.57822084]
[1772084392309,1.7098348,2061.8,2061.0,7.94222084]
[1772084397506,1.7098348,2061.8,2061.1,1.73506536]
[1772084403510,1.62827049,2061.6,2061.0,1.73506536]
[1772084405614,1.62827049,2061.5,2060.8,1.73506536]
[1772084405816,1.62827049,2061.5,2060.7,1.73506537]
[1772084409514,1.62827049,2061.5,2060.7,1e-08]
[1772084409720,1.62827049,2061.5,2060.4,1.73506536]
[1772084409721,1.62827049,2061.2,2060.4,1.73506536]
[1772084409921,1.62827049,2061.1,2060.4,1.73506536]
[1772084410712,1.62827049,2061.1,2060.4,1.74032727]
[1772084412126,1.62827049,2061.6,2060.5,8.12706536]
[1772084412419,1.62827049,2061.6,2060.6,1.73506536]
[1772084416324,1.62827049,2061.6,2060.7,1.73506536]
[1772084417228,1.62827049,2061.5,2060.7,1.73506536]
[1772084421424,1.18635745,2061.2,2060.7,1.73506536]
[1772084421625,1.62827049,2061.1,2060.7,1.73506536]
[1772084430928,1.64794446,2061.5,2060.7,1.73506536]
[1772084435541,1.5248063,2061.6,2060.9,1.65509105]
[1772084439438,2.71116375,2061.8,2060.9,1.65509105]
[1772084439638,1.5248063,2061.7,2061.0,1.65509105]
[1772084440139,1.18635745,2061.6,2061.0,1.65509105]
[1772084440339,1.5248063,2061.5,2061.0,1.65509105]
[1772084442037,1.5248063,2061.6,2061.0,1.65509105]
[1772084448145,1.18635745,2061.8,2061.0,1.65509105]
[1772084448347,3.23596134,2061.9,2061.1,1.65509105]
[1772084448539,1.5248063,2061.8,2061.1,1.65509105]
[1772084451044,1.5248063,2061.9,2061.1,1.65509105]
[1772084454546,0.00555561,2062.0,2061.3,1.65509105]
[1772084454746,0.00555561,2062.0,2061.4,1.65509105]
[1772084455144,1.5248063,2062.3,2061.5,1.65509105]
[1772084455347,1.5248063,2062.8,2062.1,1.65509105]
[1772084456246,1.52834728,2062.8,2062.1,1.66099251]
[1772084460453,0.47230764,2062.9,2062.4,1.56061725]
[1772084460659,1.53105145,2062.6,2062.1,8.04951871]
[1772084461357,1.5360579,2062.6,2062.1,8.04951871]
[1772084461557,1.5360579,2062.6,2062.2,1.56061725]
[1772084462254,1.46872333,2062.7,2062.2,1.56061725]
[1772084462459,1.18635745,2063.3,2062.2,1.56061725]
[1772084462460,1.53105145,2063.0,2062.2,1.56061725]
[1772084462853,1.53105145,2063.4,2062.4,1.56061725]
[1772084463056,1.53105145,2063.1,2062.4,1.56061725]
[1772084463257,1.537061,2063.1,2062.4,1.56061725]
[1772084468257,1.53105145,2063.3,2062.6,1.56061725]
[1772084469157,1.53690549,2063.3,2062.6,6.475]
[1772084469366,1.53690549,2063.3,2062.7,1.56061725]
[1772084470864,1.53105145,2062.8,2062.4,6.476]
[1772084471067,1.53105145,2062.8,2062.5,1.56061725]
[1772084471362,1.53105145,2062.6,2062.2,1.56061725]
[1772084471664,1.53105145,2062.4,2062.0,1.56061725]
[1772084472058,1.53105145,2062.4,2061.8,6.476]
[1772084472262,1.53105145,2062.4,2061.9,1.56061725]
[1772084472657,1.53105145,2062.4,2061.9,1.56482546]
[1772084472861,1.53105145,2062.6,2061.9,1.56482546]
[1772084475765,1.53105145,2062.6,2061.9,0.00420821]
[1772084475964,1.53105145,2062.5,2061.9,1.56482546]
[1772084476262,40.8,2063.2,2062.0,1.56061725]
[1772084476263,1.18635745,2062.8,2062.0,1.56061725]
[1772084476467,1.53105145,2062.7,2062.0,1.56061725]
[1772084478662,1.53105145,2062.7,2061.9,1.19056566]
[1772084478663,1.53105145,2063.1,2062.2,1.56061725]
[1772084479172,1.53105145,2063.1,2062.3,1.56061725]
[1772084480970,1.53105145,2063.2,2062.3,1.56061725]
[1772084484377,1.53105145,2063.2,2062.4,1.56061725]
[1772084484577,1.53690549,2063.3,2062.5,1.56061725]
[1772084486573,1.51441413,2063.3,2062.5,1.56061725]
[1772084489279,1.51441413,2063.3,2062.7,1.53143586]
[1772084490773,0.00585404,2063.3,2062.7,1.53143586]
[1772084490979,1.50856009,2063.4,2062.7,1.53143586]
[1772084491977,1.51223625,2063.4,2062.7,1.53143586]
[1772084495176,1.51223625,2063.4,2062.6,12.56555004]
[1772084495177,1.55415891,2064.0,2063.0,1.59691339]
[1772084495483,1.55415891,2063.9,2063.0,8.08491339]
[1772084496184,1.55942095,2063.9,2063.0,8.08491339]
[1772084496384,1.55942095,2063.9,2063.1,1.59691339]
[1772084496582,1.55942095,2063.9,2062.8,1.59691339]
[1772084496786,1.55415891,2063.6,2062.8,8.08491339]
[1772084497186,1.55415891,2063.6,2062.9,1.59691339]
[1772084497783,1.55415891,2063.6,2062.8,8.08491339]
[1772084501192,1.55415891,2063.6,2062.7,1.59691339]
[1772084501395,1.55415891,2063.3,2062.4,1.59691339]
[1772084505794,4.2477748,2063.9,2063.0,1.59691339]
[1772084505795,1.5815248,2063.9,2063.0,1.59691339]
[1772084506097,1.55415891,2064.1,2063.3,1.59691339]
[1772084506794,1.55415891,2064.0,2063.3,1.59691339]
[1772084506996,1.55415891,2064.0,2063.3,8.08791339]
[1772084507200,1.55415891,2063.8,2063.3,8.08791339]
[1772084507801,1.55415891,2063.8,2063.3,1.59691339]
[1772084507802,1.55415891,2063.7,2063.3,1.59691339]
[1772084511305,1.55415891,2064.0,2063.3,1.59691339]
[1772084511504,3.97815891,2063.9,2063.3,1.59691339]
[1772084511897,3.97815891,2063.8,2063.3,1.59691339]
[1772084512098,1.55415891,2063.8,2063.3,1.59691339]
[1772084512506,3.97815891,2063.8,2063.3,1.59691339]
[1772084513406,1.55415891,2063.8,2063.3,1.59691339]
[1772084513607,3.97815891,2063.8,2063.3,1.59691339]
[1772084519310,1.6294558,2064.9,2063.8,1.49270306]
[1772084519503,1.6294558,2064.9,2063.9,1.49270306]
[1772084519703,1.6294558,2064.9,2064.0,6.508]
[1772084519908,1.6294558,2064.9,2063.9,1.49270306]
[1772084520107,1.6294558,2064.9,2063.9,8.00070306]
[1772084520413,1.63400442,2064.9,2063.9,8.00547534]
[1772084520914,1.63400442,2064.9,2063.9,0.00477228]
[1772084526216,1.6294558,2064.7,2063.6,1.49270306]
[1772084526917,0.24214,2064.8,2063.0,7.59581352]
[1772084526918,1.6294558,2064.5,2063.3,1.49270306]
[1772084527318,1.6294558,2064.1,2063.3,1.49669428]
[1772084535131,1.6294558,2064.5,2063.4,1.49270306]
[1772084535530,1.6294558,2064.5,2063.6,1.49270306]
[1772084537931,1.6294558,2064.5,2063.7,1.49270306]
[1772084539328,1.6294558,2064.5,2063.8,1.49270306]
[1772084540735,1.6294558,2064.6,2063.8,1.49270306]
[1772084541534,1.6294558,2064.8,2064.1,1.18286025]
[1772084541730,1.6294558,2064.8,2064.2,1.49270306]
[1772084543435,1.6294558,2064.6,2064.0,7.98770306]
[1772084543633,1.6294558,2064.6,2064.1,1.49270306]
[1772084545435,1.6294558,2064.8,2064.2,1.49270306]
[1772084546233,1.57330769,2064.9,2064.2,1.49270306]
[1772084553240,0.00454862,2064.9,2064.4,1.59020452]
[1772084553443,41.98286025,2065.5,2064.6,1.59020452]
[1772084553444,1.58984388,2065.4,2064.6,1.59020452]
[1772084554545,1.59330231,2065.4,2064.6,1.59020452]
[1772084556237,1.59330231,2065.4,2064.7,1.59020452]
[1772084557547,0.00345843,2065.4,2064.8,1.59020452]
[1772084557748,1.59330231,2065.4,2064.8,1.59555991]
[1772084558048,1.58984388,2064.9,2064.4,1.59020452]
[1772084559142,1.58984388,2064.9,2064.4,1.59552461]
[1772084564146,1.58984388,2064.8,2064.4,1.59552461]
[1772084564447,1.58984388,2064.8,2064.4,0.00532009]
[1772084564846,1.58984388,2064.6,2064.1,1.59020452]
[1772084565847,1.58984388,2064.6,2064.1,1.59484268]
[1772084567050,1.58984388,2064.4,2063.9,1.59020452]
[1772084568249,1.58984388,2064.4,2063.9,1.59634375]
[1772084568448,1.58984388,2064.6,2063.9,1.59634375]
[1772084569151,1.58984388,2064.8,2063.9,1.59634375]
[1772084569350,1.58984388,2064.7,2064.0,1.59020452]
[1772084572848,1.58984388,2064.7,2064.1,1.18286025]
[1772084573145,1.58984388,2064.7,2064.2,1.59020452]
[1772084573352,1.58984388,2064.9,2064.2,1.59020452]
[1772084580548,1.48669679,2065.2,2064.2,1.59020452]
[1772084580753,7.97,2065.3,2064.3,1.51332891]
[1772084580754,1.48669679,2065.3,2064.3,1.51332891]
[1772084582151,1.48669679,2065.7,2064.6,1.51332891]
[1772084582358,1.48669679,2065.9,2064.8,1.51332891]
[1772084582557,1.48669679,2066.2,2064.9,1.51332891]
[1772084582760,1.48669679,2066.2,2065.1,1.51332891]
[1772084582960,1.48669679,2066.2,2065.3,1.51332891]
[1772084583157,1.49263271,2066.2,2065.3,1.51332891]
[1772084584554,0.00593592,2066.2,2065.3,1.51332891]
[1772084585056,0.00593592,2066.2,2065.4,1.51332891]
[1772084585363,0.00593592,2066.2,2065.4,1.5194398]
[1772084587962,1.49263271,2066.2,2065.5,8.06632891]
[1772084588166,1.49263271,2066.2,2065.6,1.51332891]
[1772084588663,1.49263271,2066.2,2065.4,1.5194398]
[1772084594780,1.48669679,2066.0,2065.1,1.51332891]
[1772084595976,1.48669679,2066.0,2065.1,1.51817772]
[1772084599280,1.48669679,2065.9,2065.1,1.51817772]
[1772084599875,1.48669679,2066.1,2065.4,1.51332891]
[1772084601980,1.49263271,2066.2,2065.4,1.51332891]
[1772084602182,0.00593592,2066.2,2065.4,1.51332891]
[1772084602583,1.49263271,2066.2,2065.4,1.51332891]
[1772084603476,0.00593592,2066.2,2065.4,1.51332891]
[1772084606781,1.48684435,2066.2,2065.4,1.51332891]
[1772084616288,0.00593592,2066.2,2065.4,7.58997973]
[1772084616487,0.00593592,2066.2,2065.5,1.54015627]
[1772084617089,0.00593592,2066.2,2065.7,1.54015627]
[1772084617492,1.76507819,2066.6,2065.7,1.54015627]
[1772084618493,1.77006194,2066.6,2065.7,1.54015627]
[1772084619487,1.52813194,2066.6,2065.7,1.54015627]
[1772084619994,1.77006194,2066.6,2065.5,1.54015627]
[1772084620189,1.52314819,2066.5,2065.5,1.54015627]
[1772084620391,1.52314819,2066.4,2065.5,1.54015627]
[1772084625790,1.52314819,2066.2,2065.3,1.54015627]
[1772084626493,1.52314819,2066.1,2065.3,1.54015627]
[1772084628998,1.52314819,2066.1,2065.1,0.00484881]
[1772084629294,1.52314819,2065.9,2065.1,1.54500508]
[1772084642399,1.52314819,2065.9,2065.1,0.00484881]
[1772084642602,1.48772093,2065.7,2065.1,0.00484881]
[1772084642804,1.48772093,2065.7,2064.9,1.54966527]
[1772084643110,1.48772093,2065.7,2064.8,1.54966527]
[1772084643302,1.48772093,2065.6,2064.8,1.54966527]
[1772084643500,1.18205901,2065.4,2064.6,1.54966527]
[1772084643704,1.48772093,2065.3,2064.6,1.55313791]
[1772084647908,1.48772093,2065.5,2064.6,1.55313791]
[1772084648113,1.48772093,2065.7,2064.6,1.55313791]
[1772084649609,1.48772093,2065.6,2064.6,1.55313791]
[1772084653218,1.48772093,2065.9,2064.7,1.18205901]
[1772084653413,1.48772093,2065.9,2064.8,1.54966527]
[1772084655219,1.48772093,2065.9,2064.9,1.54966527]
[1772084655418,1.48772093,2065.6,2064.9,1.54966527]
[1772084655616,1.48772093,2065.3,2064.6,8.07813791]
[1772084656316,1.48772093,2065.3,2064.6,6.52847264]
[1772084656913,1.48772093,2065.3,2064.6,0.00347264]
[1772084657220,1.48772093,2065.3,2064.6,1.55313791]
[1772084661120,3.99747886,2065.8,2064.6,1.55313791]
[1772084661121,1.48772093,2065.7,2064.6,1.55313791]
[1772084662215,1.48772093,2065.7,2064.8,1.54966527]
[1772084665620,1.48772093,2065.8,2065.0,1.54966527]
[1772084667115,1.48772093,2065.8,2065.2,1.51508293]
[1772084670821,1.48772093,2065.8,2065.1,6.538]
[1772084670822,1.48772093,2065.8,2064.8,1.51508293]
[1772084671019,1.48772093,2065.8,2065.0,1.51508293]
[1772084679227,1.18177603,2065.7,2065.0,1.51508293]
[1772084679428,1.54468866,2065.6,2065.0,1.51508293]
[1772084692835,1.18177603,2065.3,2064.7,1.48932766]
[1772084693038,1.54468866,2065.4,2064.7,1.48932766]
[1772084696836,1.6085183,2065.7,2065.2,1.49169395]
[1772084697041,1.6085183,2065.8,2065.2,1.49169395]
[1772084698844,1.6085183,2066.0,2065.2,1.49169395]
[1772084700245,1.6085183,2065.5,2064.8,6.07665082]
[1772084700439,1.6085183,2065.5,2064.9,1.49169395]
[1772084707551,1.6085183,2065.8,2065.2,1.49169395]
[1772084707755,1.6085183,2065.9,2065.4,1.49169395]
[1772084708856,1.6085183,2066.0,2065.6,1.49169395]
[1772084709154,1.6085183,2066.2,2065.1,7.25842685]
[1772084709351,1.6085183,2065.8,2065.1,8.08569395]
[1772084709551,54.11476556,2066.3,2064.8,7.57842614]
[1772084709552,1.6085183,2065.4,2064.9,1.49169395]
[1772084709955,1.6085183,2065.4,2064.8,1.49169395]
[1772084712257,0.24203,2065.8,2064.8,1.49169395]
[1772084712258,1.6085183,2065.6,2064.9,1.18177603]
[1772084712456,1.6085183,2065.6,2065.0,1.49169395]